[Event "Early-Titled-Tuesday-Blitz-May-07-2024"]
[Site "Chess.com"]
[Date "2024.05.07"]
[Round "5"]
[White "Zhigalko_Sergei"]
[Black "viktorskliarov"]
[Result "1-0"]
[WhiteElo "2872"]
[BlackElo "2641"]
[TimeControl "180+1"]
[EndTime "8:59:56 PDT"]
[Termination "Zhigalko_Sergei won by resignation"]

1. e4 {[%clk 0:03:00.9]} 1... c5 {[%clk 0:02:59.9]} 2. Nf3 {[%clk 0:03:00]} 2...
Nc6 {[%clk 0:03:00]} 3. c3 {[%clk 0:03:00.2]} 3... Nf6 {[%clk 0:02:57]} 4. e5
{[%clk 0:03:00.4]} 4... Nd5 {[%clk 0:02:57.4]} 5. Bc4 {[%clk 0:03:01.1]} 5...
Nb6 {[%clk 0:02:57.5]} 6. Bb3 {[%clk 0:03:01.6]} 6... c4 {[%clk 0:02:58.1]} 7.
Bc2 {[%clk 0:03:01.6]} 7... Qc7 {[%clk 0:02:58.8]} 8. Qe2 {[%clk 0:03:01.6]}
8... g5 {[%clk 0:02:59.2]} 9. h3 {[%clk 0:03:02]} 9... Bg7 {[%clk 0:02:58.7]}
10. O-O {[%clk 0:03:02.1]} 10... Nxe5 {[%clk 0:02:57.3]} 11. Nxg5 {[%clk
0:03:01.2]} 11... h6 {[%clk 0:02:53.5]} 12. Nf3 {[%clk 0:02:57.1]} 12... d5
{[%clk 0:02:44.7]} 13. a4 {[%clk 0:02:56.8]} 13... Nd3 {[%clk 0:02:03.7]} 14.
Bxd3 {[%clk 0:02:48.9]} 14... cxd3 {[%clk 0:02:04]} 15. Qxd3 {[%clk 0:02:49.8]}
15... e6 {[%clk 0:02:02.6]} 16. Qe2 {[%clk 0:02:40.7]} 16... Bd7 {[%clk
0:01:58.6]} 17. a5 {[%clk 0:02:29]} 17... Nc4 {[%clk 0:01:57.7]} 18. Re1 {[%clk
0:02:02.6]} 18... Nxa5 {[%clk 0:01:48.8]} 19. Qd1 {[%clk 0:01:52.5]} 19... Qb6
{[%clk 0:01:24.8]} 20. b4 {[%clk 0:01:39.5]} 20... Nc6 {[%clk 0:01:19.4]} 21. d4
{[%clk 0:01:38.9]} 21... Ne7 {[%clk 0:00:59.7]} 22. Bf4 {[%clk 0:01:24.4]} 22...
Ng6 {[%clk 0:00:59.4]} 23. Bg3 {[%clk 0:01:14.9]} 23... Rc8 {[%clk 0:00:59.2]}
24. Ne5 {[%clk 0:01:12.2]} 24... Nxe5 {[%clk 0:00:46.7]} 25. Bxe5 {[%clk
0:01:13.1]} 25... Bxe5 {[%clk 0:00:47.2]} 26. Rxe5 {[%clk 0:01:12.6]} 26... Rg8
{[%clk 0:00:46.5]} 27. Qh5 {[%clk 0:01:05.6]} 27... Rg6 {[%clk 0:00:43.8]} 28.
Re3 {[%clk 0:01:05.8]} 28... Kd8 {[%clk 0:00:23.6]} 29. Nd2 {[%clk 0:01:02.1]}
29... Kc7 {[%clk 0:00:23.7]} 30. Qe5+ {[%clk 0:00:54.1]} 30... Qd6 {[%clk
0:00:18.6]} 31. Qxd6+ {[%clk 0:00:29.3]} 31... Kxd6 {[%clk 0:00:19.5]} 32. Rxa7
{[%clk 0:00:29.4]} 32... Rcg8 {[%clk 0:00:19.8]} 33. g3 {[%clk 0:00:27.7]} 33...
f5 {[%clk 0:00:14.7]} 34. Rf3 {[%clk 0:00:18.8]} 34... e5 {[%clk 0:00:13.3]} 35.
dxe5+ {[%clk 0:00:15.7]} 35... Kxe5 {[%clk 0:00:14.2]} 36. Rxb7 {[%clk
0:00:07.9]} 36... Bc6 {[%clk 0:00:14.2]} 37. Rb6 {[%clk 0:00:07.2]} 37... d4
{[%clk 0:00:14]} 38. cxd4+ {[%clk 0:00:06.5]} 38... Kxd4 {[%clk 0:00:13.9]} 39.
Rxf5 {[%clk 0:00:06.1]} 39... Kc3 {[%clk 0:00:10.1]} 40. Rc5+ {[%clk 0:00:03.2]}
40... Kxd2 {[%clk 0:00:09.7]} 41. Rcxc6 {[%clk 0:00:04]} 41... R6g7 {[%clk
0:00:06.4]} 42. Rxh6 {[%clk 0:00:03.4]} 42... Re7 {[%clk 0:00:06.5]} 43. Rhe6
{[%clk 0:00:03.6]} 43... Ra7 {[%clk 0:00:06.7]} 44. Ra6 {[%clk 0:00:03.3]} 44...
Rb7 {[%clk 0:00:07]} 45. Rad6+ {[%clk 0:00:02.7]} 45... Kc3 {[%clk 0:00:06.7]}
46. Rb6 {[%clk 0:00:03.6]} 46... Ra7 {[%clk 0:00:06.7]} 47. Ra6 {[%clk
0:00:04.1]} 47... Rd7 {[%clk 0:00:06.3]} 48. Rad6 {[%clk 0:00:03.8]} 48... Rb7
{[%clk 0:00:06.2]} 49. Rc6+ {[%clk 0:00:03.6]} 49... Kb3 {[%clk 0:00:06.1]} 50.
Kg2 {[%clk 0:00:04.5]} 50... Rxb4 {[%clk 0:00:06.1]} 51. Rb6 {[%clk 0:00:04.6]}
51... Rxb6 {[%clk 0:00:05.9]} 52. Rxb6+ {[%clk 0:00:04.7]} 52... Kc4 {[%clk
0:00:06.8]} 53. Re6 {[%clk 0:00:04.5]} 53... Kd5 {[%clk 0:00:07.7]} 54. Re3
{[%clk 0:00:05]} 1-0

[Event "Early-Titled-Tuesday-Blitz-May-07-2024"]
[Site "Chess.com"]
[Date "2024.05.07"]
[Round "5"]
[White "Dedic8"]
[Black "Oleksandr_Bortnyk"]
[Result "1/2-1/2"]
[WhiteElo "2870"]
[BlackElo "3058"]
[TimeControl "180+1"]
[EndTime "8:59:57 PDT"]
[Termination "Game drawn by repetition"]

1. e4 {[%clk 0:03:00.9]} 1... Nf6 {[%clk 0:03:00.1]} 2. e5 {[%clk 0:03:01.6]}
2... Nd5 {[%clk 0:03:00]} 3. d4 {[%clk 0:03:02.5]} 3... d6 {[%clk 0:03:00.4]} 4.
Nf3 {[%clk 0:03:03.3]} 4... dxe5 {[%clk 0:03:00.8]} 5. Nxe5 {[%clk 0:03:04.2]}
5... c6 {[%clk 0:03:01.5]} 6. Be2 {[%clk 0:03:03.8]} 6... Bf5 {[%clk 0:03:01.4]}
7. O-O {[%clk 0:03:04]} 7... Nd7 {[%clk 0:03:01.9]} 8. Nf3 {[%clk 0:03:01.4]}
8... e6 {[%clk 0:03:02.2]} 9. a3 {[%clk 0:02:46.8]} 9... Bd6 {[%clk 0:03:02.1]}
10. c4 {[%clk 0:02:47.4]} 10... N5f6 {[%clk 0:03:02.8]} 11. Nc3 {[%clk
0:02:47.6]} 11... O-O {[%clk 0:03:02.2]} 12. Nh4 {[%clk 0:02:34]} 12... Bg6
{[%clk 0:03:01.8]} 13. Nxg6 {[%clk 0:02:33.3]} 13... hxg6 {[%clk 0:03:02.7]} 14.
Be3 {[%clk 0:02:28.1]} 14... Qc7 {[%clk 0:03:02.8]} 15. g3 {[%clk 0:02:20]}
15... e5 {[%clk 0:03:03.4]} 16. d5 {[%clk 0:02:18.9]} 16... a5 {[%clk
0:03:03.9]} 17. Rc1 {[%clk 0:02:17.4]} 17... Bc5 {[%clk 0:02:59.9]} 18. Qd3
{[%clk 0:01:57.6]} 18... a4 {[%clk 0:02:55.2]} 19. Bd1 {[%clk 0:01:31.9]} 19...
Rfe8 {[%clk 0:02:34]} 20. Nxa4 {[%clk 0:01:29.1]} 20... e4 {[%clk 0:02:32.5]}
21. Qd2 {[%clk 0:01:26.2]} 21... Bxe3 {[%clk 0:02:30.7]} 22. Qxe3 {[%clk
0:01:24.9]} 22... cxd5 {[%clk 0:02:26.3]} 23. cxd5 {[%clk 0:01:23.6]} 23... Qd6
{[%clk 0:02:25.5]} 24. Nc3 {[%clk 0:01:20.3]} 24... Nxd5 {[%clk 0:01:43.8]} 25.
Qd4 {[%clk 0:01:19.4]} 25... N7f6 {[%clk 0:01:38.9]} 26. Bb3 {[%clk 0:01:09.2]}
26... Qb6 {[%clk 0:01:32.2]} 27. Qxb6 {[%clk 0:01:03.6]} 27... Nxb6 {[%clk
0:01:33.1]} 28. Nb5 {[%clk 0:01:01.1]} 28... Re7 {[%clk 0:01:29.7]} 29. Rfd1
{[%clk 0:00:56.9]} 29... e3 {[%clk 0:01:29.1]} 30. fxe3 {[%clk 0:00:36.7]} 30...
Rxe3 {[%clk 0:01:30]} 31. Rc3 {[%clk 0:00:36.2]} 31... Re2 {[%clk 0:01:24.1]}
32. Nd6 {[%clk 0:00:28.3]} 32... Rxb2 {[%clk 0:01:19.2]} 33. Bxf7+ {[%clk
0:00:25.2]} 33... Kh7 {[%clk 0:01:19.5]} 34. Rd4 {[%clk 0:00:17.5]} 34... g5
{[%clk 0:01:15.5]} 35. h4 {[%clk 0:00:14.6]} 35... g4 {[%clk 0:01:13.4]} 36. h5
{[%clk 0:00:13.9]} 36... Rd8 {[%clk 0:01:02.9]} 37. Bg6+ {[%clk 0:00:14]} 37...
Kg8 {[%clk 0:01:03.5]} 38. Nf5 {[%clk 0:00:11.1]} 38... Rb1+ {[%clk 0:00:45.8]}
39. Kg2 {[%clk 0:00:10.7]} 39... Rb2+ {[%clk 0:00:39.1]} 40. Kg1 {[%clk
0:00:10.9]} 40... Nbd5 {[%clk 0:00:29.9]} 41. Rc7 {[%clk 0:00:07.3]} 41... Rb1+
{[%clk 0:00:23.2]} 42. Kh2 {[%clk 0:00:07.8]} 42... Rb2+ {[%clk 0:00:22.1]} 43.
Kg1 {[%clk 0:00:08.3]} 43... Kh8 {[%clk 0:00:17.5]} 44. Rxg7 {[%clk 0:00:03.4]}
44... Rc8 {[%clk 0:00:16.3]} 45. Rd1 {[%clk 0:00:03.4]} 45... Rcc2 {[%clk
0:00:14.9]} 46. Rf7 {[%clk 0:00:03.4]} 46... Rg2+ {[%clk 0:00:13.3]} 47. Kh1
{[%clk 0:00:03.9]} 47... Rh2+ {[%clk 0:00:10.4]} 48. Kg1 {[%clk 0:00:04.4]}
48... Rbg2+ {[%clk 0:00:11.2]} 49. Kf1 {[%clk 0:00:05.1]} 49... Rf2+ {[%clk
0:00:09]} 50. Kg1 {[%clk 0:00:05.5]} 50... Rfg2+ {[%clk 0:00:05.1]} 51. Kf1
{[%clk 0:00:06]} 51... Rf2+ {[%clk 0:00:02.6]} 52. Kg1 {[%clk 0:00:06.4]} 52...
Kg8 {[%clk 0:00:01.5]} 53. Rg7+ {[%clk 0:00:06.3]} 53... Kf8 {[%clk 0:00:01.5]}
54. Rxb7 {[%clk 0:00:06.9]} 54... Rfg2+ {[%clk 0:00:01.2]} 55. Kf1 {[%clk
0:00:07.3]} 55... Rf2+ {[%clk 0:00:02.1]} 56. Kg1 {[%clk 0:00:07.9]} 56... Rhg2+
{[%clk 0:00:02]} 57. Kh1 {[%clk 0:00:08.3]} 57... Rh2+ {[%clk 0:00:02.9]} 58.
Kg1 {[%clk 0:00:09]} 1/2-1/2

[Event "Early-Titled-Tuesday-Blitz-May-07-2024"]
[Site "Chess.com"]
[Date "2024.05.07"]
[Round "5"]
[White "Valeron87"]
[Black "CrushingKings"]
[Result "1/2-1/2"]
[WhiteElo "2459"]
[BlackElo "2624"]
[TimeControl "180+1"]
[EndTime "8:59:57 PDT"]
[Termination "Game drawn by repetition"]

1. e4 {[%clk 0:02:59.7]} 1... g6 {[%clk 0:03:00.6]} 2. d4 {[%clk 0:02:59.5]}
2... Bg7 {[%clk 0:03:01.2]} 3. Nc3 {[%clk 0:02:58.5]} 3... c6 {[%clk 0:03:01.8]}
4. h3 {[%clk 0:02:55.6]} 4... d5 {[%clk 0:03:02.2]} 5. e5 {[%clk 0:02:55.3]}
5... f6 {[%clk 0:03:02.4]} 6. Nf3 {[%clk 0:02:49.5]} 6... fxe5 {[%clk 0:03:00]}
7. Nxe5 {[%clk 0:02:43.6]} 7... Nf6 {[%clk 0:03:00]} 8. Bg5 {[%clk 0:02:25.1]}
8... O-O {[%clk 0:03:00.1]} 9. Qd2 {[%clk 0:02:25.3]} 9... Nfd7 {[%clk
0:03:00.2]} 10. Ng4 {[%clk 0:02:20]} 10... Nf6 {[%clk 0:02:53.9]} 11. Be2 {[%clk
0:02:09.3]} 11... Bxg4 {[%clk 0:02:32.9]} 12. hxg4 {[%clk 0:02:09.1]} 12... Nbd7
{[%clk 0:02:25.7]} 13. Bh6 {[%clk 0:02:03.6]} 13... Rf7 {[%clk 0:02:15.1]} 14.
Bxg7 {[%clk 0:01:59.3]} 14... Rxg7 {[%clk 0:02:14.8]} 15. g5 {[%clk 0:01:58.1]}
15... Ne8 {[%clk 0:02:14.1]} 16. f4 {[%clk 0:01:57.5]} 16... Nd6 {[%clk
0:02:13.2]} 17. Bg4 {[%clk 0:01:56.2]} 17... Nf8 {[%clk 0:02:12.4]} 18. O-O-O
{[%clk 0:01:55]} 18... Qb6 {[%clk 0:02:09]} 19. b3 {[%clk 0:01:37.3]} 19... Qb4
{[%clk 0:02:07.9]} 20. Qe3 {[%clk 0:01:25.8]} 20... a5 {[%clk 0:01:54.6]} 21.
Na4 {[%clk 0:01:22.1]} 21... Ne4 {[%clk 0:01:38.5]} 22. Bf3 {[%clk 0:01:17.7]}
22... b5 {[%clk 0:01:38.3]} 23. Bxe4 {[%clk 0:01:09.9]} 23... bxa4 {[%clk
0:01:38.2]} 24. Bf3 {[%clk 0:01:04.5]} 24... axb3 {[%clk 0:01:37.4]} 25. Qxb3
{[%clk 0:00:56.4]} 25... Qd6 {[%clk 0:01:37.3]} 26. g3 {[%clk 0:00:55.1]} 26...
a4 {[%clk 0:01:34.2]} 27. Qc3 {[%clk 0:00:53.9]} 27... Rc8 {[%clk 0:01:09.2]}
28. Rhe1 {[%clk 0:00:48.8]} 28... a3 {[%clk 0:01:06.2]} 29. Re3 {[%clk
0:00:44.4]} 29... Ra8 {[%clk 0:01:02.4]} 30. Rde1 {[%clk 0:00:37]} 30... e6
{[%clk 0:00:15.5]} 31. Bg4 {[%clk 0:00:37]} 31... Rb7 {[%clk 0:00:14.7]} 32.
Bxe6+ {[%clk 0:00:32.8]} 32... Kh8 {[%clk 0:00:15.3]} 33. Bg4 {[%clk 0:00:29.9]}
33... Rb2 {[%clk 0:00:15.2]} 34. Re8 {[%clk 0:00:28.3]} 34... Rxe8 {[%clk
0:00:14.3]} 35. Rxe8 {[%clk 0:00:29.2]} 35... Rxa2 {[%clk 0:00:14.6]} 36. Re6
{[%clk 0:00:18.4]} 36... Qd8 {[%clk 0:00:12.6]} 37. Rxc6 {[%clk 0:00:17.6]}
37... Qe7 {[%clk 0:00:09.9]} 38. Rc7 {[%clk 0:00:17.2]} 38... Qe4 {[%clk
0:00:10.1]} 39. Rc8 {[%clk 0:00:14.4]} 39... Qh1+ {[%clk 0:00:05.8]} 40. Bd1
{[%clk 0:00:14.3]} 40... Kg8 {[%clk 0:00:05.6]} 41. Rc7 {[%clk 0:00:05.1]} 41...
Qg1 {[%clk 0:00:04.4]} 42. Ra7 {[%clk 0:00:04.8]} 42... Qf2 {[%clk 0:00:02.4]}
43. Rxa3 {[%clk 0:00:04.2]} 43... Rxa3 {[%clk 0:00:03]} 44. Qxa3 {[%clk
0:00:05.1]} 44... Qxd4 {[%clk 0:00:03.4]} 45. Qe7 {[%clk 0:00:04.8]} 45... Qa1+
{[%clk 0:00:02.9]} 46. Kd2 {[%clk 0:00:04.9]} 46... d4 {[%clk 0:00:03.6]} 47.
Qd6 {[%clk 0:00:04.1]} 47... Qc3+ {[%clk 0:00:03.8]} 48. Kc1 {[%clk 0:00:04.4]}
48... Qa1+ {[%clk 0:00:04.1]} 49. Kd2 {[%clk 0:00:04.6]} 49... Qc3+ {[%clk
0:00:04.7]} 50. Kc1 {[%clk 0:00:05]} 50... Qa1+ {[%clk 0:00:03.6]} 51. Kd2
{[%clk 0:00:05.3]} 1/2-1/2

[Event "Early-Titled-Tuesday-Blitz-May-07-2024"]
[Site "Chess.com"]
[Date "2024.05.07"]
[Round "5"]
[White "Mikhail_Golubev"]
[Black "aanshnerurkar"]
[Result "1-0"]
[WhiteElo "2624"]
[BlackElo "2485"]
[TimeControl "180+1"]
[EndTime "8:59:58 PDT"]
[Termination "Mikhail_Golubev won by resignation"]

1. e4 {[%clk 0:03:00.9]} 1... c5 {[%clk 0:02:59.5]} 2. Nf3 {[%clk 0:03:00.6]}
2... d6 {[%clk 0:02:59.4]} 3. d4 {[%clk 0:03:00.5]} 3... cxd4 {[%clk 0:02:59.8]}
4. Nxd4 {[%clk 0:03:01.2]} 4... Nf6 {[%clk 0:03:00.1]} 5. Nc3 {[%clk 0:03:01.8]}
5... g6 {[%clk 0:02:59.7]} 6. Be3 {[%clk 0:03:00.5]} 6... Bg7 {[%clk 0:02:59]}
7. f3 {[%clk 0:03:00.4]} 7... O-O {[%clk 0:02:58.8]} 8. Qd2 {[%clk 0:03:00.6]}
8... Nc6 {[%clk 0:02:59.2]} 9. Bc4 {[%clk 0:02:52.5]} 9... Bd7 {[%clk
0:02:58.9]} 10. h4 {[%clk 0:02:51.1]} 10... Ne5 {[%clk 0:02:58.7]} 11. Bb3
{[%clk 0:02:50.1]} 11... Rc8 {[%clk 0:02:58.8]} 12. h5 {[%clk 0:02:45.9]} 12...
Nxh5 {[%clk 0:02:56.9]} 13. O-O-O {[%clk 0:02:46]} 13... Nf6 {[%clk 0:02:56.4]}
14. Bh6 {[%clk 0:02:35.4]} 14... Bxh6 {[%clk 0:02:55.7]} 15. Rxh6 {[%clk
0:02:29.7]} 15... Qa5 {[%clk 0:02:54.2]} 16. Rdh1 {[%clk 0:02:28.7]} 16... Rxc3
{[%clk 0:02:48.8]} 17. bxc3 {[%clk 0:02:23.3]} 17... Kg7 {[%clk 0:01:56.5]} 18.
Rxh7+ {[%clk 0:02:04.7]} 18... Nxh7 {[%clk 0:01:56]} 19. Qh6+ {[%clk 0:02:04.1]}
19... Kf6 {[%clk 0:01:56]} 20. Qh4+ {[%clk 0:01:27.3]} 20... g5 {[%clk
0:01:26.8]} 21. Qxh7 {[%clk 0:01:13.4]} 21... Qxc3 {[%clk 0:01:25.6]} 22. Nf5
{[%clk 0:00:37.5]} 22... Nd3+ {[%clk 0:00:51.5]} 23. Kd1 {[%clk 0:00:36.7]}
23... Nb2+ {[%clk 0:00:26.3]} 24. Ke2 {[%clk 0:00:35.9]} 24... Bb5+ {[%clk
0:00:23.3]} 25. Kf2 {[%clk 0:00:34.2]} 25... Qd2+ {[%clk 0:00:23.2]} 26. Kg1
{[%clk 0:00:19.5]} 26... Qc1+ {[%clk 0:00:22.7]} 27. Kh2 {[%clk 0:00:17]} 27...
Qf4+ {[%clk 0:00:22.5]} 28. g3 {[%clk 0:00:15.9]} 28... Qd2+ {[%clk 0:00:22.5]}
29. Kh3 {[%clk 0:00:15.1]} 29... g4+ {[%clk 0:00:22.2]} 30. Kxg4 {[%clk
0:00:05.1]} 30... Qg5+ {[%clk 0:00:20]} 31. Kh3 {[%clk 0:00:05.3]} 31... Bd7
{[%clk 0:00:19.4]} 32. f4 {[%clk 0:00:02.4]} 32... Bxf5+ {[%clk 0:00:19]} 33.
exf5 {[%clk 0:00:03.1]} 33... Qxf5+ {[%clk 0:00:19]} 34. Qxf5+ {[%clk
0:00:03.3]} 34... Kxf5 {[%clk 0:00:19.5]} 35. Rb1 {[%clk 0:00:03.8]} 35... b5
{[%clk 0:00:16.4]} 36. Rxb2 {[%clk 0:00:03.2]} 36... a6 {[%clk 0:00:16.6]} 37.
c3 {[%clk 0:00:03.6]} 37... e6 {[%clk 0:00:16]} 38. Bc2+ {[%clk 0:00:04.2]}
38... Kf6 {[%clk 0:00:16.1]} 39. Bd3 {[%clk 0:00:04.5]} 39... d5 {[%clk
0:00:15.7]} 40. Rc2 {[%clk 0:00:04.5]} 40... Rc8 {[%clk 0:00:15.5]} 41. Kg2
{[%clk 0:00:04.7]} 41... Ke7 {[%clk 0:00:15.6]} 42. Kf3 {[%clk 0:00:05.1]} 42...
Kd6 {[%clk 0:00:16.1]} 43. g4 {[%clk 0:00:05.6]} 43... Rc7 {[%clk 0:00:14.9]}
44. a3 {[%clk 0:00:05.7]} 44... Rc5 {[%clk 0:00:14.9]} 45. Ke3 {[%clk
0:00:05.8]} 45... Rc8 {[%clk 0:00:14.1]} 46. g5 {[%clk 0:00:06]} 46... Ke7
{[%clk 0:00:13]} 47. Kd4 {[%clk 0:00:06.2]} 47... Kd6 {[%clk 0:00:13]} 48. Rh2
{[%clk 0:00:05.9]} 48... Rf8 {[%clk 0:00:10.9]} 49. Rh7 {[%clk 0:00:05.4]} 49...
Ke7 {[%clk 0:00:10.6]} 50. g6 {[%clk 0:00:05.3]} 50... Kf6 {[%clk 0:00:10.6]}
51. Rxf7+ {[%clk 0:00:05.7]} 51... Rxf7 {[%clk 0:00:10.7]} 52. gxf7 {[%clk
0:00:06.6]} 52... Kxf7 {[%clk 0:00:11.4]} 53. Ke5 {[%clk 0:00:06.7]} 53... Ke7
{[%clk 0:00:11.4]} 54. Be2 {[%clk 0:00:06.9]} 1-0

[Event "Early-Titled-Tuesday-Blitz-May-07-2024"]
[Site "Chess.com"]
[Date "2024.05.07"]
[Round "5"]
[White "Rhesh29"]
[Black "Fh2411"]
[Result "1-0"]
[WhiteElo "2390"]
[BlackElo "2524"]
[TimeControl "180+1"]
[EndTime "8:59:58 PDT"]
[Termination "Rhesh29 won on time"]

1. e4 {[%clk 0:03:00.9]} 1... c5 {[%clk 0:02:52.4]} 2. Nf3 {[%clk 0:02:59.4]}
2... e6 {[%clk 0:02:53]} 3. d4 {[%clk 0:02:58.5]} 3... cxd4 {[%clk 0:02:53.9]}
4. Nxd4 {[%clk 0:02:58.4]} 4... a6 {[%clk 0:02:54.5]} 5. Bd3 {[%clk 0:02:57.2]}
5... Nc6 {[%clk 0:02:54]} 6. Nb3 {[%clk 0:02:42.4]} 6... Nf6 {[%clk 0:02:52.1]}
7. O-O {[%clk 0:02:41.9]} 7... Be7 {[%clk 0:02:49.4]} 8. Re1 {[%clk 0:02:41.7]}
8... Qc7 {[%clk 0:02:42.3]} 9. N1d2 {[%clk 0:02:35.4]} 9... O-O {[%clk
0:02:29.2]} 10. Nf3 {[%clk 0:02:34.4]} 10... d6 {[%clk 0:02:29.1]} 11. h3 {[%clk
0:02:19.2]} 11... b5 {[%clk 0:02:16.5]} 12. a3 {[%clk 0:02:13.4]} 12... Bb7
{[%clk 0:02:16]} 13. Be3 {[%clk 0:02:11.7]} 13... Rac8 {[%clk 0:02:14.5]} 14.
Qd2 {[%clk 0:02:09.7]} 14... Rfd8 {[%clk 0:02:11.3]} 15. Rac1 {[%clk 0:02:01.4]}
15... Ne5 {[%clk 0:01:44.2]} 16. Nxe5 {[%clk 0:01:44.3]} 16... dxe5 {[%clk
0:01:45.1]} 17. f3 {[%clk 0:01:44.6]} 17... h6 {[%clk 0:01:43.8]} 18. Qf2 {[%clk
0:01:44.6]} 18... Rd7 {[%clk 0:01:20.3]} 19. Bb6 {[%clk 0:01:41.3]} 19... Qb8
{[%clk 0:01:20.2]} 20. Na5 {[%clk 0:01:37.7]} 20... Ba8 {[%clk 0:01:17.6]} 21.
Be3 {[%clk 0:01:36.3]} 21... Nh5 {[%clk 0:01:13.5]} 22. Nb3 {[%clk 0:01:27.5]}
22... Rdc7 {[%clk 0:00:59.4]} 23. Bf1 {[%clk 0:01:17.6]} 23... Bg5 {[%clk
0:00:54]} 24. Bxg5 {[%clk 0:01:08.1]} 24... hxg5 {[%clk 0:00:54.9]} 25. Qe3
{[%clk 0:01:02.4]} 25... f6 {[%clk 0:00:51.3]} 26. Bd3 {[%clk 0:00:59.8]} 26...
Nf4 {[%clk 0:00:50]} 27. g3 {[%clk 0:00:52.3]} 27... Nxd3 {[%clk 0:00:41.9]} 28.
cxd3 {[%clk 0:00:50.9]} 28... Rc2 {[%clk 0:00:42.4]} 29. Rxc2 {[%clk 0:00:42]}
29... Rxc2 {[%clk 0:00:43.3]} 30. Re2 {[%clk 0:00:42.5]} 30... Rc7 {[%clk
0:00:35.4]} 31. Kg2 {[%clk 0:00:35.5]} 31... Bc6 {[%clk 0:00:35.6]} 32. Nc5
{[%clk 0:00:33.2]} 32... Qc8 {[%clk 0:00:32.5]} 33. b4 {[%clk 0:00:31.6]} 33...
Be8 {[%clk 0:00:31.3]} 34. Rc2 {[%clk 0:00:27.8]} 34... Qd8 {[%clk 0:00:26.5]}
35. Qf2 {[%clk 0:00:23.5]} 35... Rc6 {[%clk 0:00:26.7]} 36. g4 {[%clk
0:00:21.2]} 36... Qc7 {[%clk 0:00:14.9]} 37. Rc3 {[%clk 0:00:20.7]} 37... a5
{[%clk 0:00:14.8]} 38. Qa2 {[%clk 0:00:18.4]} 38... axb4 {[%clk 0:00:10.8]} 39.
axb4 {[%clk 0:00:18.1]} 39... Qd6 {[%clk 0:00:11.1]} 40. Qa8 {[%clk 0:00:16.7]}
40... Kf7 {[%clk 0:00:10.4]} 41. Qb7+ {[%clk 0:00:16.2]} 41... Kg6 {[%clk
0:00:10.7]} 42. Qa8 {[%clk 0:00:15.1]} 42... Kf7 {[%clk 0:00:09.4]} 43. Ra3
{[%clk 0:00:15.3]} 43... Rc7 {[%clk 0:00:07.9]} 44. Ra7 {[%clk 0:00:14.6]} 44...
Rxa7 {[%clk 0:00:07.4]} 45. Qxa7+ {[%clk 0:00:14.9]} 45... Kg6 {[%clk
0:00:08.3]} 46. Qb7 {[%clk 0:00:13]} 46... Qd4 {[%clk 0:00:08]} 47. Qc8 {[%clk
0:00:13.1]} 47... Qb2+ {[%clk 0:00:07.8]} 48. Kg3 {[%clk 0:00:13]} 48... Bf7
{[%clk 0:00:08]} 49. Qh8 {[%clk 0:00:11.3]} 49... f5 {[%clk 0:00:06.2]} 50. Nd7
{[%clk 0:00:10.9]} 1-0

[Event "Early-Titled-Tuesday-Blitz-May-07-2024"]
[Site "Chess.com"]
[Date "2024.05.07"]
[Round "5"]
[White "MITerryble"]
[Black "JeFumeDesClopes"]
[Result "0-1"]
[WhiteElo "3032"]
[BlackElo "2717"]
[TimeControl "180+1"]
[EndTime "9:00:00 PDT"]
[Termination "JeFumeDesClopes won by resignation"]

1. d4 {[%clk 0:03:00.9]} 1... Nf6 {[%clk 0:02:58.4]} 2. Bg5 {[%clk 0:03:00.8]}
2... c5 {[%clk 0:02:58]} 3. d5 {[%clk 0:02:59]} 3... d6 {[%clk 0:02:56.1]} 4.
Nc3 {[%clk 0:02:57.2]} 4... g6 {[%clk 0:02:49.6]} 5. e4 {[%clk 0:02:55.6]} 5...
Bg7 {[%clk 0:02:49.8]} 6. Nf3 {[%clk 0:02:53.5]} 6... O-O {[%clk 0:02:44]} 7.
Nd2 {[%clk 0:02:53.8]} 7... e6 {[%clk 0:02:40.3]} 8. Be2 {[%clk 0:02:51.7]} 8...
exd5 {[%clk 0:02:40.1]} 9. exd5 {[%clk 0:02:52.6]} 9... Re8 {[%clk 0:02:37.4]}
10. O-O {[%clk 0:02:52.7]} 10... Nbd7 {[%clk 0:02:38]} 11. a4 {[%clk 0:02:51.6]}
11... a6 {[%clk 0:02:36.6]} 12. Re1 {[%clk 0:02:51.1]} 12... h6 {[%clk
0:02:35.3]} 13. Bf4 {[%clk 0:02:51.1]} 13... Ne5 {[%clk 0:02:35]} 14. h3 {[%clk
0:02:46.4]} 14... b6 {[%clk 0:02:21.1]} 15. Bf1 {[%clk 0:02:45]} 15... Bb7
{[%clk 0:02:18.6]} 16. Bh2 {[%clk 0:02:40.8]} 16... Nxd5 {[%clk 0:02:12.5]} 17.
Nce4 {[%clk 0:02:30.5]} 17... Nf6 {[%clk 0:01:53.4]} 18. c3 {[%clk 0:02:19.5]}
18... Nxe4 {[%clk 0:01:52]} 19. Nxe4 {[%clk 0:02:20.4]} 19... d5 {[%clk
0:01:49.9]} 20. Nd2 {[%clk 0:02:20.9]} 20... Qd7 {[%clk 0:01:47.4]} 21. Qb3
{[%clk 0:02:19.9]} 21... Qc6 {[%clk 0:01:40.7]} 22. Rad1 {[%clk 0:02:10.7]}
22... Rad8 {[%clk 0:01:40.7]} 23. Bf4 {[%clk 0:02:05.9]} 23... d4 {[%clk
0:01:36.1]} 24. Bxe5 {[%clk 0:01:32.7]} 24... Rxe5 {[%clk 0:01:21.4]} 25. Rxe5
{[%clk 0:01:32.2]} 25... Bxe5 {[%clk 0:01:22.3]} 26. Nf3 {[%clk 0:01:33.1]}
26... Bg7 {[%clk 0:01:17]} 27. Bc4 {[%clk 0:01:23.1]} 27... Qf6 {[%clk
0:01:10.6]} 28. cxd4 {[%clk 0:01:23.3]} 28... Bxf3 {[%clk 0:01:06.6]} 29. gxf3
{[%clk 0:01:15.8]} 29... Qg5+ {[%clk 0:00:42.6]} 30. Kf1 {[%clk 0:01:11.6]}
30... Bxd4 {[%clk 0:00:35.4]} 31. Qxb6 {[%clk 0:00:57.9]} 31... Re8 {[%clk
0:00:28.9]} 32. Qd6 {[%clk 0:00:49.3]} 32... Kg7 {[%clk 0:00:15.8]} 33. b3
{[%clk 0:00:47]} 33... Re5 {[%clk 0:00:15]} 34. Qd7 {[%clk 0:00:23.1]} 34... Rf5
{[%clk 0:00:13.3]} 35. Rxd4 {[%clk 0:00:18.2]} 35... cxd4 {[%clk 0:00:13.2]} 36.
Qxd4+ {[%clk 0:00:19.1]} 36... Qf6 {[%clk 0:00:10.9]} 37. Qxf6+ {[%clk
0:00:14.8]} 37... Rxf6 {[%clk 0:00:11.8]} 38. a5 {[%clk 0:00:15.5]} 38... Rf5
{[%clk 0:00:09.4]} 39. b4 {[%clk 0:00:15.2]} 39... Rxf3 {[%clk 0:00:04.3]} 40.
Ke2 {[%clk 0:00:13.4]} 40... Rf4 {[%clk 0:00:02.1]} 41. Kd3 {[%clk 0:00:13.4]}
41... Rf6 {[%clk 0:00:02.6]} 42. Kd4 {[%clk 0:00:13.1]} 42... Kf8 {[%clk
0:00:03]} 43. Kc5 {[%clk 0:00:12.6]} 43... Ke7 {[%clk 0:00:03.4]} 44. b5 {[%clk
0:00:11.6]} 44... axb5 {[%clk 0:00:04.3]} 45. Bxb5 {[%clk 0:00:12.5]} 45... Kd8
{[%clk 0:00:04.3]} 46. Bc6 {[%clk 0:00:11.4]} 46... Kc7 {[%clk 0:00:04.4]} 47.
Bd5 {[%clk 0:00:12.2]} 47... Rxf2 {[%clk 0:00:04.5]} 48. a6 {[%clk 0:00:12.5]}
48... Rf5 {[%clk 0:00:04.8]} 49. a7 {[%clk 0:00:09.6]} 49... Rxd5+ {[%clk
0:00:05.4]} 50. Kxd5 {[%clk 0:00:10.5]} 50... Kb7 {[%clk 0:00:06]} 51. Ke5
{[%clk 0:00:11.4]} 51... f5 {[%clk 0:00:05.5]} 52. h4 {[%clk 0:00:09.9]} 52...
h5 {[%clk 0:00:06]} 53. Kf6 {[%clk 0:00:09.3]} 53... f4 {[%clk 0:00:05.9]} 54.
Kxg6 {[%clk 0:00:09.9]} 54... f3 {[%clk 0:00:06.6]} 55. Kxh5 {[%clk 0:00:10.8]}
55... f2 {[%clk 0:00:07.3]} 56. Kh6 {[%clk 0:00:11.2]} 56... f1=Q {[%clk
0:00:07.9]} 57. h5 {[%clk 0:00:12.1]} 57... Qf7 {[%clk 0:00:07.4]} 58. Kg5
{[%clk 0:00:12.5]} 58... Qg8+ {[%clk 0:00:07.7]} 59. Kh6 {[%clk 0:00:11.9]}
59... Qh8+ {[%clk 0:00:08.6]} 60. Kg6 {[%clk 0:00:12.4]} 60... Kxa7 {[%clk
0:00:09.5]} 61. h6 {[%clk 0:00:12.8]} 61... Kb6 {[%clk 0:00:10.4]} 62. h7 {[%clk
0:00:13.1]} 62... Kc6 {[%clk 0:00:11.3]} 63. Kf7 {[%clk 0:00:14]} 63... Kd7
{[%clk 0:00:12.2]} 0-1